fUST/lending_fUST_20241107
["ID","MTS","AMOUNT","RATE_DAILY","PERIOD"]
[341520521,1730950559494,-500.0,0.00021917,2]
[341520522,1730950559525,-500.0,0.00021917,2]
[341520523,1730950559549,-500.0,0.00021917,2]
[341520524,1730950559573,-500.0,0.00021917,2]
[341520525,1730950559597,-500.0,0.00021917,2]
[341520526,1730950559621,-500.0,0.00021917,2]
[341520527,1730950559644,-608.11193786,0.00021917,2]
[341520528,1730950559668,-509.15061109,0.00021917,2]
[341520529,1730950559694,-500.0,0.00021917,2]
[341520530,1730950559718,-500.0,0.00021917,2]
[341520531,1730950559743,-151.0,0.00021917,2]
[341520532,1730950559771,-500.0,0.00021917,2]
[341520533,1730950559796,-508.31255013,0.00021917,2]
[341520534,1730950559821,-500.0,0.00021917,2]
[341520535,1730950559847,-500.0,0.00021917,2]
[341520536,1730950559871,-341.72985071,0.00021917,2]
[341520537,1730950559895,-151.0,0.00021917,2]
[341520538,1730950559919,-503.51226375,0.00021917,2]
[341520539,1730950559950,-500.0,0.00021917,2]
[341520540,1730950559974,-500.0,0.00021917,2]
[341520541,1730950559999,-500.0,0.00021917,2]
[341520542,1730950560024,-500.0,0.00021917,2]
[341520543,1730950560049,-533.1268171,0.00021917,2]
[341520544,1730950560073,-500.0,0.00021917,2]
[341520545,1730950560098,-500.0,0.00021917,2]
[341520546,1730950560126,-500.0,0.00021917,2]
[341520547,1730950560150,-172.96947768,0.00021917,2]
[341520548,1730950560176,-500.0,0.00021917,2]
[341520549,1730950560203,-500.0,0.00021917,2]
[341520550,1730950560227,-509.16888515,0.00021917,2]
[341520551,1730950560251,-500.0,0.00021917,2]
[341520552,1730950560278,-500.0,0.00021917,2]
[341520553,1730950560304,-500.0,0.00021917,2]
[341520554,1730950560329,-509.65282591,0.00021917,2]
[341520555,1730950560353,-500.0,0.00021917,2]
[341520556,1730950560378,-500.0,0.00021917,2]
[341520557,1730950560402,-500.0,0.00021917,2]
[341520558,1730950560427,-511.10648132,0.00021917,2]
[341520559,1730950560451,-500.0,0.00021917,2]
[341520560,1730950560476,-520.31030041,0.00021917,2]
[341520561,1730950560501,-500.0,0.00021917,2]
[341520562,1730950560528,-500.0,0.00021917,2]
[341520563,1730950560553,-517.1434043,0.00021917,2]
[341520564,1730950560578,-500.0,0.00021917,2]
[341520565,1730950560603,-500.0,0.00021917,2]
[341520566,1730950560630,-500.0,0.00021917,2]
[341520567,1730950560656,-500.0,0.00021917,2]
[341520568,1730950560682,-500.0,0.00021917,2]
[341520569,1730950560708,-500.0,0.00021917,2]
[341520570,1730950560732,-511.01477259,0.00021917,2]
[341520571,1730950560757,-500.0,0.00021917,2]
[341520572,1730950560782,-501.83474515,0.00021917,2]
[341520573,1730950560806,-500.0,0.00021917,2]
[341520574,1730950560831,-151.0,0.00021917,2]
[341520575,1730950560856,-419.75587283,0.00021917,2]
[341520576,1730950560882,-500.0,0.00021917,2]
[341520577,1730950560907,-500.0,0.00021917,2]
[341520578,1730950560931,-500.0,0.00021917,2]
[341520579,1730950560955,-507.24695409,0.00021917,2]
[341520580,1730950560980,-500.0,0.00021917,2]
[341520581,1730950561006,-500.0,0.00021917,2]
[341520582,1730950561032,-508.8946587,0.00021917,2]
[341520583,1730950561056,-500.0,0.00021917,2]
[341520584,1730950561081,-500.0,0.00021917,2]
[341520585,1730950561105,-274.62038593,0.00021917,2]
[341520586,1730950561133,-500.0,0.00021917,2]
[341520587,1730950561156,-507.42088998,0.00021917,2]
[341520588,1730950561180,-500.0,0.00021917,2]
[341520589,1730950561206,-500.0,0.00021917,2]
[341520590,1730950561230,-500.0,0.00021917,2]
[341520591,1730950561254,-500.0,0.00021917,2]
[341520592,1730950561280,-500.0,0.00021917,2]
[341520593,1730950561304,-575.06739978,0.00021917,2]
[341520594,1730950561328,-500.0,0.00021917,2]
[341520595,1730950561354,-500.0,0.00021917,2]
[341520596,1730950561378,-500.0,0.00021917,2]
[341520597,1730950561402,-151.0,0.00021917,2]
[341520598,1730950561429,-500.0,0.00021917,2]
[341520599,1730950561454,-500.0,0.00021917,2]
[341520600,1730950561480,-500.0,0.00021917,2]
[341520601,1730950561504,-173.13162585,0.00021917,2]
[341520602,1730950561536,-500.0,0.00021917,2]
[341520603,1730950561561,-500.0,0.00021917,2]
[341520604,1730950561588,-500.0,0.00021917,2]
[341520605,1730950561613,-1630.33,0.00021917,2]
[341520606,1730950561637,-1630.33,0.00021917,2]
[341520607,1730950561662,-1630.33,0.00021917,2]
[341520608,1730950561689,-1630.33,0.00021917,2]
[341520609,1730950561825,-1630.33,0.00021917,2]
[341520610,1730950561853,-1630.33,0.00021917,2]
[341520611,1730950561877,-1630.33,0.00021917,2]
[341520612,1730950561902,-1630.33,0.00021917,2]
[341520613,1730950561926,-1630.33,0.00021917,2]
[341520614,1730950561951,-1630.33,0.00021917,2]
[341520615,1730950561975,-1630.33,0.00021917,2]
[341520616,1730950562001,-1630.33,0.00021917,2]
[341520617,1730950562028,-1630.33,0.00021917,2]
[341520618,1730950562053,-500.0,0.00021917,2]
[341520619,1730950562078,-1630.33,0.00021917,2]
[341520620,1730950562104,-505.79991445,0.00021917,2]
[341520621,1730950562131,-500.0,0.00021917,2]
[341520622,1730950562156,-500.0,0.00021917,2]
[341520623,1730950562182,-500.0,0.00021917,2]
[341520624,1730950562209,-500.0,0.00021917,2]
[341520625,1730950562236,-501.56547385,0.00021917,2]
[341520626,1730950562263,-500.0,0.00021917,2]
[341520627,1730950562289,-500.0,0.00021917,2]
[341520628,1730950562315,-500.0,0.00021917,2]
[341520629,1730950562342,-512.90917708,0.00021917,2]
[341520630,1730950562367,-503.20678304,0.00021917,2]
[341520631,1730950562392,-500.0,0.00021917,2]
[341520632,1730950562420,-500.0,0.00021917,2]
[341520633,1730950562454,-500.0,0.00021917,2]
[341520634,1730950562486,-500.0,0.00021917,2]
[341520635,1730950562515,-500.0,0.00021917,2]
[341520636,1730950562542,-503.38800636,0.00021917,2]
[341520637,1730950562569,-500.0,0.00021917,2]
[341520638,1730950562597,-500.0,0.00021917,2]
[341520639,1730950562624,-500.0,0.00021917,2]
[341520640,1730950562651,-500.0,0.00021917,2]
[341520641,1730950562677,-500.0,0.00021917,2]
[341520642,1730950562703,-500.0,0.00021917,2]
[341520643,1730950562728,-502.90735307,0.00021917,2]
[341520644,1730950562754,-500.0,0.00021917,2]
[341520645,1730950562784,-500.0,0.00021917,2]
[341520646,1730950562819,-278.19012656,0.00021917,2]
[341520647,1730950562845,-500.0,0.00021917,2]
[341520648,1730950562871,-500.0,0.00021917,2]
[341520649,1730950562897,-500.0,0.00021917,2]
[341520650,1730950562923,-500.0,0.00021917,2]
[341520651,1730950562948,-500.0,0.00021917,2]
[341520652,1730950562975,-500.0,0.00021917,2]
[341520653,1730950563000,-500.0,0.00021917,2]
[341520654,1730950563027,-500.0,0.00021917,2]
[341520655,1730950563053,-220.5669713,0.00021917,2]
[341520656,1730950563080,-500.0,0.00021917,2]
[341520657,1730950563110,-500.0,0.00021917,2]
[341520658,1730950563142,-500.0,0.00021917,2]
[341520659,1730950563171,-500.0,0.00021917,2]
[341520660,1730950563197,-151.0,0.00021917,2]
[341520661,1730950563230,-500.0,0.00021917,2]
[341520662,1730950563258,-151.0,0.00021917,2]
[341520663,1730950563288,-500.0,0.00021917,2]
[341520664,1730950563314,-500.0,0.00021917,2]
[341520665,1730950563340,-500.0,0.00021917,2]
[341520666,1730950563372,-500.0,0.00021917,2]
[341520667,1730950563399,-500.0,0.00021917,2]
[341520668,1730950563425,-500.0,0.00021917,2]
[341520669,1730950563451,-500.0,0.00021917,2]
[341520670,1730950563477,-151.0,0.00021917,2]
[341520671,1730950563505,-500.0,0.00021917,2]
[341520672,1730950563532,-381.4361,0.00021917,2]
[341520673,1730950563558,-500.0,0.00021917,2]
[341520674,1730950563585,-500.0,0.00021917,2]
[341520675,1730950563611,-151.0,0.00021917,2]
[341520676,1730950563637,-151.0,0.00021917,2]
[341520677,1730950563662,-502.35374473,0.00021917,2]
[341520678,1730950563687,-514.14363152,0.00021917,2]
[341520679,1730950563713,-151.0,0.00021917,2]
[341520680,1730950563739,-503.01534359,0.00021917,2]
[341520681,1730950563767,-500.0,0.00021917,2]
[341520682,1730950563796,-381.4361,0.00021917,2]
[341520683,1730950563822,-511.15407283,0.00021917,2]
[341520684,1730950563848,-500.0,0.00021917,2]
[341520685,1730950563873,-500.0,0.00021917,2]
[341520686,1730950563898,-504.93828817,0.00021917,2]
[341520687,1730950563923,-500.0,0.00021917,2]
[341520688,1730950563953,-500.0,0.00021917,2]
[341520689,1730950563979,-524.83427363,0.00021917,2]
[341520690,1730950564009,-500.0,0.00021917,2]
[341520691,1730950564036,-500.0,0.00021917,2]
[341520692,1730950564063,-500.0,0.00021917,2]
[341520693,1730950564088,-500.0,0.00021917,2]
[341520694,1730950564114,-500.0,0.00021917,2]
[341520695,1730950564143,-500.0,0.00021917,2]
[341520696,1730950564168,-500.0,0.00021917,2]
[341520697,1730950564195,-500.0,0.00021917,2]
[341520698,1730950564220,-500.0,0.00021917,2]
[341520699,1730950564246,-500.0,0.00021917,2]
[341520700,1730950564275,-500.0,0.00021917,2]
[341520701,1730950564301,-500.0,0.00021917,2]
[341520702,1730950564327,-500.0,0.00021917,2]
[341520703,1730950564352,-506.80370217,0.00021917,2]
[341520704,1730950564378,-500.0,0.00021917,2]
[341520705,1730950564404,-503.71849587,0.00021917,2]
[341520706,1730950564429,-500.0,0.00021917,2]
[341520707,1730950564587,-500.0,0.00021917,2]
[341520708,1730950564614,-500.0,0.00021917,2]
[341520709,1730950564640,-500.0,0.00021917,2]
[341520710,1730950564665,-500.0,0.00021917,2]
[341520711,1730950564690,-500.0,0.00021917,2]
[341520712,1730950564716,-151.0,0.00021917,2]
[341520713,1730950564740,-500.0,0.00021917,2]
[341520714,1730950564767,-151.0,0.00021917,2]
[341520715,1730950564792,-200.0,0.00021917,2]
[341520716,1730950564817,-500.0,0.00021917,2]
[341520717,1730950564841,-500.0,0.00021917,2]
[341520718,1730950564866,-500.0,0.00021917,2]
[341520719,1730950564891,-500.0,0.00021917,2]
[341520720,1730950564917,-500.0,0.00021917,2]
[341520721,1730950564942,-505.64636871,0.00021917,2]
[341520722,1730950564968,-500.0,0.00021917,2]
[341520723,1730950564995,-504.53229261,0.00021917,2]
[341520724,1730950565037,-500.0,0.00021917,2]
[341520725,1730950565066,-500.0,0.00021917,2]
[341520726,1730950565096,-500.0,0.00021917,2]
[341520727,1730950565126,-500.0,0.00021917,2]
[341520728,1730950565152,-500.0,0.00021917,2]
[341520729,1730950565181,-500.0,0.00021917,2]
[341520730,1730950565209,-500.0,0.00021917,2]
[341520731,1730950565236,-500.0,0.00021917,2]
[341520732,1730950565265,-590.92314943,0.00021917,2]
[341520733,1730950565294,-502.53778312,0.00021917,2]
[341520734,1730950565320,-500.0,0.00021917,2]
[341520735,1730950565347,-500.0,0.00021917,2]
[341520736,1730950565372,-500.0,0.00021917,2]
[341520737,1730950565398,-500.0,0.00021917,2]
[341520738,1730950565423,-500.0,0.00021917,2]
[341520739,1730950565449,-500.0,0.00021917,2]
[341520740,1730950565475,-500.0,0.00021917,2]
[341520741,1730950565500,-500.0,0.00021917,2]
[341520742,1730950565529,-500.0,0.00021917,2]
[341520743,1730950565555,-500.0,0.00021917,2]
[341520744,1730950565581,-500.0,0.00021917,2]
[341520745,1730950565606,-500.0,0.00021917,2]
[341520746,1730950565633,-642.87965775,0.00021917,2]
[341520747,1730950565659,-500.0,0.00021917,2]
[341520748,1730950565683,-501.67869102,0.00021917,2]
[341520749,1730950565720,-151.0,0.00021917,2]
[341520750,1730950565744,-500.0,0.00021917,2]
[341520751,1730950565775,-568.3023968,0.00021917,2]
[341520752,1730950565800,-500.0,0.00021917,2]
[341520753,1730950565826,-500.0,0.00021917,2]
[341520754,1730950565852,-501.21187345,0.00021917,2]
[341520755,1730950565878,-500.0,0.00021917,2]
[341520756,1730950565904,-500.0,0.00021917,2]
[341520757,1730950565929,-500.0,0.00021917,2]
[341520758,1730950565954,-500.0,0.00021917,2]
[341520759,1730950565980,-501.18831241,0.00021917,2]
[341520760,1730950566021,-500.0,0.00021917,2]
[341520761,1730950566047,-500.0,0.00021917,2]
[341520762,1730950566073,-500.0,0.00021917,2]
[341520763,1730950566107,-500.0,0.00021917,2]
[341520764,1730950566148,-500.0,0.00021917,2]
[341520765,1730950566178,-500.0,0.00021917,2]
[341520766,1730950566205,-543.51,0.00021917,2]
[341520767,1730950566232,-424.72345822,0.00021917,2]
[341520768,1730950566259,-500.0,0.00021917,2]
[341520769,1730950566287,-500.0,0.00021917,2]
[341520770,1730950566312,-500.0,0.00021917,2]
[341520771,1730950566337,-509.77185251,0.00021917,2]
[341520772,1730950566363,-500.0,0.00021917,2]
[341520773,1730950566389,-500.0,0.00021917,2]
[341520774,1730950566416,-500.0,0.00021917,2]
[341520775,1730950566442,-500.0,0.00021917,2]
[341520776,1730950566469,-500.0,0.00021917,2]
[341520777,1730950566494,-378.44475232,0.00021917,2]
[341520778,1730950566521,-500.0,0.00021917,2]
[341520779,1730950566551,-500.0,0.00021917,2]
[341520780,1730950566585,-500.0,0.00021917,2]
[341520781,1730950566610,-500.0,0.00021917,2]
[341520782,1730950566637,-500.0,0.00021917,2]
[341520783,1730950566664,-500.0,0.00021917,2]
[341520784,1730950566688,-230.36166904,0.00021917,2]
[341520785,1730950566712,-500.0,0.00021917,2]
[341520786,1730950566738,-1630.33,0.00021971,2]
[341520787,1730950566763,-500.0,0.00021973,2]
[341520788,1730950566790,-1250.78580405,0.00022,2]
[341520789,1730950566816,-500.0,0.00022173,2]
[341520790,1730950566843,-151.0,0.00022189,7]
[341520791,1730950566871,-151.0,0.00022189,7]
[341520792,1730950566898,-1630.33,0.0002219,2]
[341520793,1730950566925,-1630.33,0.0002219,2]
[341520794,1730950566952,-1630.33,0.0002219,2]
[341520795,1730950566978,-1630.33,0.0002219,2]
[341520796,1730950567005,-506.58948571,0.00022191,2]
[341520797,1730950567033,-500.0,0.00022191,2]
[341520798,1730950567058,-502.93759906,0.00022191,2]
[341520799,1730950567082,-503.83737364,0.00022191,2]
[341520800,1730950567107,-500.0,0.00022191,2]
[341520801,1730950567263,-501.65636571,0.00022191,2]
[341520802,1730950567292,-500.0,0.00022191,2]
[341520803,1730950567318,-500.0,0.00022191,2]
[341520804,1730950567343,-173.88160056,0.00022191,2]
[341520805,1730950567369,-500.0,0.00022191,2]
[341520806,1730950567394,-500.0,0.00022191,2]
[341520807,1730950567419,-500.0,0.00022191,2]
[341520808,1730950567445,-500.0,0.00022191,2]
[341520809,1730950567471,-330.80711106,0.00022191,2]
[341520810,1730950567498,-500.0,0.00022191,2]
[341520811,1730950567523,-332.21603306,0.00022191,2]
[341520812,1730950567548,-500.0,0.00022191,2]
[341520813,1730950567574,-406.5192466,0.00022191,3]
[341520814,1730950567599,-474.90294503,0.00022191,2]
[341520815,1730950567623,-500.0,0.00022191,2]
[341520816,1730950567648,-502.56707613,0.00022191,2]
[341520817,1730950567672,-500.0,0.00022191,2]
[341520818,1730950567698,-500.0,0.00022191,2]
[341520819,1730950567726,-500.0,0.00022191,2]
[341520820,1730950567752,-514.15271998,0.00022191,2]
[341520821,1730950567778,-526.97912381,0.00022191,2]
[341520822,1730950567803,-500.0,0.00022191,2]
[341520823,1730950567827,-500.0,0.00022191,2]
[341520824,1730950567852,-500.0,0.00022191,2]
[341520825,1730950567879,-387.9693311,0.00022191,2]
[341520826,1730950567907,-500.0,0.00022191,2]
[341520827,1730950567934,-500.0,0.00022191,2]
[341520828,1730950567959,-494.30837843,0.00022191,2]
[341520829,1730950567983,-500.93336674,0.00022191,2]
[341520830,1730950568011,-519.57608669,0.00022191,2]
[341520831,1730950568041,-500.0,0.00022191,2]
[341520832,1730950568067,-500.0,0.00022191,2]
[341520833,1730950568092,-500.0,0.00022191,2]
[341520834,1730950568121,-500.0,0.00022191,2]
[341520835,1730950568147,-500.0,0.00022191,2]
[341520836,1730950568175,-517.5717839,0.00022191,2]
[341520837,1730950568201,-500.0,0.00022191,2]
[341520838,1730950568226,-610.18045519,0.00022191,2]
[341520839,1730950568252,-318.4461901,0.00022191,2]
[341520840,1730950568284,-515.35346746,0.00022191,2]
[341520841,1730950568310,-608.90544956,0.00022191,2]
[341520842,1730950568335,-500.0,0.00022191,2]
[341520843,1730950568359,-500.0,0.00022191,2]
[341520844,1730950568386,-500.0,0.00022191,2]
[341520845,1730950568414,-500.0,0.00022191,2]
[341520846,1730950568441,-637.78,0.00022191,2]
[341520847,1730950568466,-511.01123111,0.00022191,2]
[341520848,1730950568493,-500.0,0.00022191,2]
[341520849,1730950568523,-509.60581915,0.00022191,2]
[341520850,1730950568548,-500.0,0.00022191,2]
[341520851,1730950568574,-500.0,0.00022191,2]
[341520852,1730950568599,-500.0,0.00022191,2]
[341520853,1730950568623,-500.0,0.00022191,2]
[341520854,1730950568648,-174.60487287,0.00022191,2]
[341520855,1730950568677,-500.0,0.00022191,2]
[341520856,1730950568702,-500.0,0.00022191,2]
[341520857,1730950568730,-500.0,0.00022191,2]
[341520858,1730950568756,-505.60667388,0.00022191,2]
[341520859,1730950568783,-500.0,0.00022191,2]
[341520860,1730950568811,-151.0,0.00022191,7]
[341520861,1730950568836,-500.0,0.00022191,2]
[341520862,1730950568862,-151.0,0.00022191,7]
[341520863,1730950568888,-608.46747589,0.00022191,2]
[341520864,1730950568914,-500.0,0.00022191,2]
[341520865,1730950568941,-500.0,0.00022191,2]
[341520866,1730950568968,-500.0,0.00022191,2]
[341520867,1730950568996,-500.0,0.00022191,2]
[341520868,1730950569031,-151.0,0.00022191,7]
[341520869,1730950569056,-504.32268258,0.00022191,2]
[341520870,1730950569082,-500.0,0.00022191,2]
[341520871,1730950569107,-596.11337058,0.00022191,2]
[341520872,1730950569136,-367.96478391,0.00022191,2]
[341520873,1730950569163,-500.0,0.00022191,2]
[341520874,1730950569190,-500.0,0.00022191,2]
[341520875,1730950569219,-167.212594,0.00022191,7]
[341520876,1730950569246,-506.68,0.00022191,2]
[341520877,1730950569276,-500.0,0.00022191,2]
[341520878,1730950569301,-500.0,0.00022191,2]
[341520879,1730950569327,-156.66,0.00022191,2]
[341520880,1730950569352,-500.0,0.00022191,2]
[341520881,1730950569381,-215.45,0.00022191,2]
[341520882,1730950569407,-500.0,0.00022191,2]
[341520883,1730950569432,-229.62029618,0.00022191,2]
[341520884,1730950569457,-530.30635291,0.00022191,2]
[341520885,1730950569484,-500.0,0.00022191,2]
[341520886,1730950569509,-555.03702041,0.00022191,2]
[341520887,1730950569539,-500.0,0.00022191,2]
[341520888,1730950569566,-605.56586392,0.00022191,2]
[341520889,1730950569592,-510.62248388,0.00022191,2]
[341520890,1730950569616,-512.23399366,0.00022191,2]
[341520891,1730950569642,-500.0,0.00022191,2]
[341520892,1730950569785,-506.43910854,0.00022191,2]
[341520893,1730950569819,-506.22017348,0.00022191,2]
[341520894,1730950569845,-451.74313836,0.00022191,2]
[341520895,1730950569876,-151.0,0.00022191,7]
[341520896,1730950569903,-500.0,0.00022191,2]
[341520897,1730950569929,-500.0,0.00022191,2]
[341520898,1730950569954,-500.0,0.00022191,2]
[341520899,1730950569979,-500.0,0.00022191,2]
[341520900,1730950570007,-151.0,0.00022191,7]
[341520901,1730950570036,-509.03499637,0.00022191,2]
[341520902,1730950570062,-381.4361,0.00022191,7]
[341520903,1730950570088,-503.36889235,0.00022191,2]
[341520904,1730950570115,-183.613624,0.00022191,7]
[341520905,1730950570146,-500.0,0.00022191,2]
[341520906,1730950570173,-381.4361,0.00022191,7]
[341520907,1730950570197,-500.0,0.00022191,2]
[341520908,1730950570224,-500.0,0.00022191,2]
[341520909,1730950570249,-513.02850397,0.00022191,2]
[341520910,1730950570278,-206.89434716,0.00022191,2]
[341520911,1730950570304,-500.0,0.00022191,2]
[341520912,1730950570330,-500.0,0.00022191,2]
[341520913,1730950570356,-500.0,0.00022191,2]
[341520914,1730950570387,-500.71178923,0.00022191,2]
[341520915,1730950570413,-500.0,0.00022191,2]
[341520916,1730950570439,-151.0,0.00022191,7]
[341520917,1730950570466,-509.64111277,0.00022191,2]
[341520918,1730950570493,-500.0,0.00022191,2]
[341520919,1730950570523,-500.0,0.00022191,2]
[341520920,1730950570550,-500.0,0.00022191,2]
[341520921,1730950570578,-507.58188059,0.00022191,2]
[341520922,1730950570606,-505.42513784,0.00022191,2]
[341520923,1730950570632,-538.15455622,0.00022191,2]
[341520924,1730950570660,-502.70236609,0.00022191,2]
[341520925,1730950570686,-500.0,0.00022191,2]
[341520926,1730950570712,-505.4423183,0.00022191,2]
[341520927,1730950570738,-506.44014193,0.00022191,2]
[341520928,1730950570764,-500.0,0.00022191,2]
[341520929,1730950570796,-273.63,0.00022191,2]
[341520930,1730950570822,-508.77867767,0.00022191,2]
[341520931,1730950570854,-500.0,0.00022191,2]
[341520932,1730950570880,-601.99366917,0.00022191,2]
[341520933,1730950570907,-500.0,0.00022191,2]
[341520934,1730950570935,-507.0236875,0.00022191,2]
[341520935,1730950570960,-503.4977175,0.00022191,2]
[341520936,1730950570986,-500.0,0.00022191,2]
[341520937,1730950571013,-500.0,0.00022191,2]
[341520938,1730950571042,-500.0,0.00022191,2]
[341520939,1730950571068,-510.00502087,0.00022191,2]
[341520940,1730950571094,-500.0,0.00022191,2]
[341520941,1730950571119,-497.14613751,0.00022191,2]
[341520942,1730950571147,-530.88920607,0.00022191,2]
[341520943,1730950571173,-302.22606353,0.00022465,2]
[341520944,1730950571199,-500.0,0.00022465,2]
[341520945,1730950571225,-500.0,0.00022465,2]
[341520946,1730950571251,-500.0,0.00022465,2]
[341520947,1730950571280,-500.0,0.00022465,2]
[341520948,1730950571307,-191.32,0.00022465,2]
[341520949,1730950571334,-500.0,0.00022465,2]
[341520950,1730950571360,-350.23166491,0.00022465,2]
[341520951,1730950571388,-262.5717086,0.00022465,2]
[341520952,1730950571415,-500.0,0.00022465,2]
[341520953,1730950571441,-500.0,0.00022465,2]
[341520954,1730950571468,-434.99999999,0.00022465,2]
[341520955,1730950571495,-513.03700434,0.00022465,2]
[341520956,1730950571523,-324.85,0.00022465,2]
[341520957,1730950571548,-500.0,0.00022465,2]
[341520958,1730950571573,-301.71,0.00022739,2]
[341520959,1730950571600,-500.0,0.00022739,2]
[341520960,1730950571627,-500.0,0.00023013,2]
[341520961,1730950571655,-500.0,0.00023287,2]
[341520962,1730950571681,-1000.0,0.00023342,2]
[341520963,1730950571706,-1000.0,0.00023542,2]
[341520964,1730950571734,-500.0,0.00023561,2]
[341520965,1730950571760,-500.0,0.00023835,2]
[341520966,1730950571788,-500.0,0.00024109,2]
[341520967,1730950571814,-2316.29276723,0.00024243,2]
[341520968,1730950571840,-500.0,0.00024383,2]
[341520969,1730950571866,-1630.33,0.00024656,2]
[341520970,1730950571891,-1630.33,0.00024656,2]
[341520971,1730950571917,-1630.33,0.00024656,2]
[341520972,1730950571943,-1630.33,0.00024656,2]
[341520973,1730950571968,-1630.52005936,0.00024656,2]
[341520974,1730950571993,-151.0,0.00024656,7]
[341520975,1730950572021,-200.0,0.00024657,2]
[341520976,1730950572046,-202.51353327,0.00024657,2]
[341520977,1730950572072,-500.0,0.00024657,2]
[341520978,1730950572098,-5000.0,0.00024658,2]
[341520979,1730950572127,-5000.0,0.00024658,2]
[341520980,1730950572257,-5000.0,0.00024658,2]
[341520981,1730950572285,-2537.974754,0.00024658,2]
[341520982,1730950572314,-151.0,0.00024658,7]
[341520983,1730950572340,-151.0,0.00024658,7]
[341520984,1730950572368,-298.29,0.00024931,2]
[341520985,1730950572486,1169.27083333,0.00021426,2]
[341520989,1730950739372,1169.27083333,0.0002084,2]
[341520994,1730951162992,162.544789,0.00013973,2]
[341521007,1730951350809,1169.27083333,0.0002084,2]
[341521020,1730951432600,-256.71564417,0.00020935,2]
[341521021,1730951432610,-96.07686849,0.00021917,2]
[341521068,1730951444996,-54.92313151,0.00021917,2]
[341521069,1730951445005,-153.464237,0.00021917,2]
[341521070,1730951445017,-251.264927,0.00021917,2]
[341521071,1730951445027,-526.50323723,0.00021917,2]
[341521072,1730951445037,-500.0,0.00021917,2]
[341521073,1730951445048,-500.0,0.00021917,2]
[341521074,1730951445059,-1029.78028879,0.00024388,2]
[341521089,1730951445249,-6860.27068157,0.00024388,2]
[341521116,1730951451698,-17009.94902964,0.00024388,2]
[341521117,1730951451708,-377.1450668,0.00025,2]
[341521118,1730951451718,-500.0,0.00025413,2]
[341521119,1730951451731,-500.0,0.0002628,2]
[341521120,1730951451745,-150.0,0.00026678,2]
[341521121,1730951451759,-1136.0,0.00026678,2]
[341521122,1730951451773,-529.0,0.00026678,2]
[341521123,1730951451785,-2392.0,0.00026678,2]
[341521124,1730951451796,-1000.0,0.00026782,2]
[341521125,1730951451808,-2269.0,0.00027,120]
[341521126,1730951451822,-500.0,0.00027342,2]
[341521127,1730951451836,-1004.84135951,0.00027397,2]
[341521128,1730951451850,-500.0,0.00027397,2]
[341521129,1730951451864,-270.6776524,0.00027397,2]
[341521130,1730951451877,-500.0,0.00027397,2]
[341521131,1730951451889,-500.0,0.00027397,2]
[341521132,1730951451903,-500.0,0.00027397,2]
[341521133,1730951451918,-500.0,0.00027397,2]
[341521134,1730951451932,-500.0,0.00027397,2]
[341521135,1730951451945,-500.0,0.00027397,2]
[341521136,1730951451956,-500.0,0.00027397,2]
[341521137,1730951451967,-500.0,0.00027397,2]